[Event "Titled Tuesday Blitz May 23 Late 2023"]
[White "Babazada, Khazar"]
[Black "Haydon, David L"]
[WhiteFideId "13413554"]
[BlackFideId "415405"]
[WhiteElo "2351"]
[BlackElo "2326"]
[Result "1-0"]
[Round "03"]
[TimeControl "180+2"]
[Date "2023.05.23"]
[WhiteClock "0:01:05"]
[BlackClock "0:00:08"]

1. e4 {[%clk 0:03:00]}  c6 {[%clk 0:02:59]} 2. d4 {[%clk 0:03:01]}  d5 {[%clk 0:02:57]} 3. Nc3 {[%clk 0:03:00]}  dxe4 {[%clk 0:02:57]} 4. Nxe4 {[%clk 0:03:01]}  Nf6 {[%clk 0:02:57]} 5. Nxf6+ {[%clk 0:03:02]}  exf6 {[%clk 0:02:58]} 6. c3 {[%clk 0:03:02]}  Bd6 {[%clk 0:02:58]} 7. Bd3 {[%clk 0:03:03]}  O-O {[%clk 0:02:58]} 8. Ne2 {[%clk 0:03:04]}  Re8 {[%clk 0:02:59]} 9. Qc2 {[%clk 0:03:05]}  g6 {[%clk 0:02:57]} 10. h4 {[%clk 0:03:02]}  Nd7 {[%clk 0:02:55]} 11. h5 {[%clk 0:03:02]}  f5 {[%clk 0:02:54]} 12. Bh6 {[%clk 0:03:01]}  Nf6 {[%clk 0:02:54]} 13. hxg6 {[%clk 0:02:58]}  fxg6 {[%clk 0:02:52]} 14. f3 {[%clk 0:02:59]}  Nd5 {[%clk 0:02:42]} 15. O-O-O {[%clk 0:02:56]}  Qf6 {[%clk 0:02:37]} 16. Qd2 {[%clk 0:02:53]}  f4 {[%clk 0:02:32]} 17. Rde1 {[%clk 0:02:47]}  Bf5 {[%clk 0:02:28]} 18. Bc4 {[%clk 0:02:43]}  b5 {[%clk 0:02:17]} 19. Bxd5+ {[%clk 0:02:41]}  cxd5 {[%clk 0:02:17]} 20. Bxf4 {[%clk 0:02:40]}  b4 {[%clk 0:02:08]} 21. g4 {[%clk 0:02:25]}  bxc3 {[%clk 0:02:04]} 22. Nxc3 {[%clk 0:02:24]}  Bd7 {[%clk 0:01:54]} 23. Bxd6 {[%clk 0:01:52]}  Qxd6 {[%clk 0:01:53]} 24. Qh6 {[%clk 0:01:51]}  Rxe1+ {[%clk 0:01:52]} 25. Rxe1 {[%clk 0:01:52]}  Rf8 {[%clk 0:01:49]} 26. Re3 {[%clk 0:01:34]}  Rf4 {[%clk 0:01:41]} 27. Nxd5 {[%clk 0:01:26]}  Rf7 {[%clk 0:01:15]} 28. Qg5 {[%clk 0:01:21]}  Be6 {[%clk 0:01:07]} 29. Nc3 {[%clk 0:01:13]}  Bc4 {[%clk 0:00:46]} 30. d5 {[%clk 0:01:08]}  Kf8 {[%clk 0:00:20]} 31. Qh6+ {[%clk 0:01:08]}  Kg8 {[%clk 0:00:20]} 32. Re8+ {[%clk 0:01:08]}  Rf8 {[%clk 0:00:20]} 33. Rxf8+ {[%clk 0:01:08]}  Qxf8 {[%clk 0:00:20]} 34. Qe3 {[%clk 0:01:07]}  Qf6 {[%clk 0:00:18]} 35. b3 {[%clk 0:01:06]}  Bxd5 {[%clk 0:00:16]} 36. Nxd5 {[%clk 0:01:01]}  Qa1+ {[%clk 0:00:16]} 37. Kc2 {[%clk 0:01:00]}  Qxa2+ {[%clk 0:00:17]} 38. Kc3 {[%clk 0:01:00]}  Qa1+ {[%clk 0:00:17]} 39. Kc4 {[%clk 0:01:00]}  Qa6+ {[%clk 0:00:16]} 40. Kd4 {[%clk 0:01:01]}  Qb7 {[%clk 0:00:13]} 41. Qe8+ {[%clk 0:01:00]}  Kg7 {[%clk 0:00:13]} 42. Qe5+ {[%clk 0:01:00]}  Kf7 {[%clk 0:00:12]} 43. Qf6+ {[%clk 0:01:01]}  Ke8 {[%clk 0:00:13]} 44. Qh8+ {[%clk 0:01:01]}  Kd7 {[%clk 0:00:13]} 45. Qxh7+ {[%clk 0:01:02]}  Kc6 {[%clk 0:00:14]} 46. Qxb7+ {[%clk 0:01:03]}  Kxb7 {[%clk 0:00:13]} 47. f4 {[%clk 0:01:04]}  a5 {[%clk 0:00:14]} 48. f5 {[%clk 0:01:04]}  a4 {[%clk 0:00:08]} 49. bxa4 {[%clk 0:01:05]} 1-0


[Site "https://www.chess.com"]

[Event "Titled Tuesday Blitz May 23 Late 2023"]
[White "Xiong, Jeffery"]
[Black "Chen, Justin"]
[WhiteFideId "2047640"]
[BlackFideId "2098199"]
[WhiteElo "2726"]
[BlackElo "2289"]
[Result "1-0"]
[Round "03"]
[TimeControl "180+2"]
[Date "2023.05.23"]
[WhiteClock "0:00:58"]
[BlackClock "0:00:00"]

1. d4 {[%clk 0:03:00]}  d5 {[%clk 0:02:57]} 2. Nf3 {[%clk 0:03:00]}  Nf6 {[%clk 0:02:57]} 3. Bf4 {[%clk 0:03:00]}  c5 {[%clk 0:02:55]} 4. e3 {[%clk 0:03:01]}  Nc6 {[%clk 0:02:55]} 5. Nbd2 {[%clk 0:03:01]}  cxd4 {[%clk 0:02:49]} 6. exd4 {[%clk 0:03:01]}  Bf5 {[%clk 0:02:48]} 7. Bb5 {[%clk 0:03:00]}  e6 {[%clk 0:02:31]} 8. Ne5 {[%clk 0:02:59]}  Qb6 {[%clk 0:02:25]} 9. Bxc6+ {[%clk 0:02:18]}  bxc6 {[%clk 0:02:25]} 10. Nb3 {[%clk 0:02:19]}  a5 {[%clk 0:02:06]} 11. a4 {[%clk 0:02:19]}  Bb4+ {[%clk 0:02:07]} 12. c3 {[%clk 0:02:18]}  Be7 {[%clk 0:02:07]} 13. O-O {[%clk 0:02:10]}  O-O {[%clk 0:01:42]} 14. Nd2 {[%clk 0:02:07]}  Rfc8 {[%clk 0:01:22]} 15. b3 {[%clk 0:01:57]}  c5 {[%clk 0:01:23]} 16. dxc5 {[%clk 0:01:58]}  Bxc5 {[%clk 0:01:22]} 17. c4 {[%clk 0:01:57]}  h6 {[%clk 0:01:16]} 18. h3 {[%clk 0:01:56]}  Rd8 {[%clk 0:01:05]} 19. Qe2 {[%clk 0:01:54]}  Ne4 {[%clk 0:01:04]} 20. cxd5 {[%clk 0:01:25]}  Nxd2 {[%clk 0:01:02]} 21. Bxd2 {[%clk 0:01:25]}  Rxd5 {[%clk 0:00:56]} 22. g4 {[%clk 0:01:09]}  Bh7 {[%clk 0:00:44]} 23. Bc3 {[%clk 0:01:08]}  Qxb3 {[%clk 0:00:35]} 24. Rfc1 {[%clk 0:01:09]}  Qb6 {[%clk 0:00:17]} 25. Ra2 {[%clk 0:01:06]}  Rad8 {[%clk 0:00:16]} 26. Nc4 {[%clk 0:01:03]}  Qa6 {[%clk 0:00:10]} 27. Bxa5 {[%clk 0:01:02]}  Rc8 {[%clk 0:00:09]} 28. Rd2 {[%clk 0:00:59]}  Rxd2 {[%clk 0:00:07]} 29. Bxd2 {[%clk 0:01:00]}  Bf8 {[%clk 0:00:06]} 30. a5 {[%clk 0:00:59]}  Bg6 {[%clk 0:00:03]} 31. Be3 {[%clk 0:00:59]}  Qb5 {[%clk 0:00:02]} 32. Qa2 {[%clk 0:00:59]}  Bc5 {[%clk 0:00:02]} 33. Nd6 {[%clk 0:00:58]}  Bxd6 {[%clk 0:00:01]} 34. Rxc8+ {[%clk 0:00:59]}  Kh7 {[%clk 0:00:00]} 35. a6 {[%clk 0:00:58]} 1-0


[Site "https://www.chess.com"]

[Event "Titled Tuesday Blitz May 23 Late 2023"]
[White "Ilkhomi, Jaloliddin"]
[Black "Durarbayli, Vasif"]
[WhiteFideId "14700948"]
[BlackFideId "13402935"]
[WhiteElo "2045"]
[BlackElo "2551"]
[Result "1/2-1/2"]
[Round "03"]
[TimeControl "180+2"]
[Date "2023.05.23"]
[WhiteClock "0:00:05"]
[BlackClock "0:00:09"]

1. Nf3 {[%clk 0:02:59]}  c5 {[%clk 0:02:59]} 2. c3 {[%clk 0:02:58]}  d5 {[%clk 0:02:58]} 3. d4 {[%clk 0:02:58]}  cxd4 {[%clk 0:02:59]} 4. cxd4 {[%clk 0:02:59]}  Nc6 {[%clk 0:03:00]} 5. Nc3 {[%clk 0:03:00]}  Nf6 {[%clk 0:03:01]} 6. Bf4 {[%clk 0:02:59]}  a6 {[%clk 0:03:01]} 7. Rc1 {[%clk 0:02:59]}  Qb6 {[%clk 0:02:37]} 8. Na4 {[%clk 0:02:44]}  Qa5+ {[%clk 0:02:36]} 9. Bd2 {[%clk 0:02:44]}  Qd8 {[%clk 0:02:36]} 10. Bf4 {[%clk 0:02:23]}  Qa5+ {[%clk 0:02:34]} 11. Bd2 {[%clk 0:02:23]}  Qd8 {[%clk 0:02:34]} 12. Bf4 {[%clk 0:02:23]}  e6 {[%clk 0:02:18]} 13. a3 {[%clk 0:02:18]}  Be7 {[%clk 0:02:13]} 14. e3 {[%clk 0:02:18]}  Qa5+ {[%clk 0:02:10]} 15. Nc3 {[%clk 0:02:17]}  Bd7 {[%clk 0:02:08]} 16. Bd3 {[%clk 0:02:17]}  b5 {[%clk 0:02:06]} 17. O-O {[%clk 0:02:16]}  b4 {[%clk 0:02:07]} 18. axb4 {[%clk 0:02:15]}  Nxb4 {[%clk 0:02:08]} 19. Bb1 {[%clk 0:02:10]}  O-O {[%clk 0:02:03]} 20. Ne5 {[%clk 0:02:10]}  Bb5 {[%clk 0:02:03]} 21. Nxb5 {[%clk 0:02:08]}  Qxb5 {[%clk 0:02:00]} 22. Bg5 {[%clk 0:02:00]}  Rac8 {[%clk 0:01:39]} 23. Qd2 {[%clk 0:01:32]}  a5 {[%clk 0:01:03]} 24. Rxc8 {[%clk 0:01:14]}  Rxc8 {[%clk 0:01:03]} 25. Rc1 {[%clk 0:01:14]}  Qb7 {[%clk 0:00:56]} 26. h3 {[%clk 0:00:58]}  h6 {[%clk 0:00:52]} 27. Bh4 {[%clk 0:00:58]}  a4 {[%clk 0:00:33]} 28. Bxf6 {[%clk 0:00:41]}  gxf6 {[%clk 0:00:19]} 29. Ng4 {[%clk 0:00:34]}  h5 {[%clk 0:00:15]} 30. Nh2 {[%clk 0:00:18]}  Rxc1+ {[%clk 0:00:14]} 31. Qxc1 {[%clk 0:00:19]}  Nc6 {[%clk 0:00:15]} 32. Nf3 {[%clk 0:00:18]}  f5 {[%clk 0:00:12]} 33. Qc2 {[%clk 0:00:16]}  Qb5 {[%clk 0:00:10]} 34. Ne1 {[%clk 0:00:15]}  Nb4 {[%clk 0:00:05]} 35. Qd2 {[%clk 0:00:15]}  Kg7 {[%clk 0:00:04]} 36. Nf3 {[%clk 0:00:14]}  Nc6 {[%clk 0:00:03]} 37. Ne1 {[%clk 0:00:14]}  Bb4 {[%clk 0:00:03]} 38. Qd3 {[%clk 0:00:08]}  Qb6 {[%clk 0:00:04]} 39. Nf3 {[%clk 0:00:08]}  Bd6 {[%clk 0:00:05]} 40. Qd2 {[%clk 0:00:08]}  Na5 {[%clk 0:00:03]} 41. Qc2 {[%clk 0:00:08]}  Qb3 {[%clk 0:00:02]} 42. Nd2 {[%clk 0:00:07]}  Qxc2 {[%clk 0:00:01]} 43. Bxc2 {[%clk 0:00:07]}  a3 {[%clk 0:00:02]} 44. bxa3 {[%clk 0:00:07]}  Bxa3 {[%clk 0:00:03]} 45. Bd3 {[%clk 0:00:06]}  h4 {[%clk 0:00:03]} 46. Kf1 {[%clk 0:00:06]}  f4 {[%clk 0:00:02]} 47. exf4 {[%clk 0:00:03]}  Bc1 {[%clk 0:00:03]} 48. Nf3 {[%clk 0:00:03]}  Bxf4 {[%clk 0:00:02]} 49. Nxh4 {[%clk 0:00:03]}  Nb3 {[%clk 0:00:01]} 50. Nf3 {[%clk 0:00:03]}  Nd2+ {[%clk 0:00:02]} 51. Nxd2 {[%clk 0:00:04]}  Bxd2 {[%clk 0:00:03]} 52. Ke2 {[%clk 0:00:04]}  Bc3 {[%clk 0:00:03]} 53. Ke3 {[%clk 0:00:05]}  Bb2 {[%clk 0:00:04]} 54. f3 {[%clk 0:00:05]}  Bc1+ {[%clk 0:00:03]} 55. Ke2 {[%clk 0:00:06]}  f5 {[%clk 0:00:03]} 56. Bb5 {[%clk 0:00:05]}  f4 {[%clk 0:00:03]} 57. Bd7 {[%clk 0:00:05]}  Kf6 {[%clk 0:00:03]} 58. Kd3 {[%clk 0:00:04]}  Bb2 {[%clk 0:00:03]} 59. h4 {[%clk 0:00:05]}  Ba3 {[%clk 0:00:02]} 60. h5 {[%clk 0:00:05]}  Bb2 {[%clk 0:00:02]} 61. h6 {[%clk 0:00:06]}  e5 {[%clk 0:00:03]} 62. h7 {[%clk 0:00:05]}  Kg7 {[%clk 0:00:03]} 63. dxe5 {[%clk 0:00:04]}  Bxe5 {[%clk 0:00:03]} 64. Bf5 {[%clk 0:00:05]}  Bf6 {[%clk 0:00:03]} 65. Kc2 {[%clk 0:00:05]}  Bh4 {[%clk 0:00:03]} 66. Kd3 {[%clk 0:00:05]}  Bf2 {[%clk 0:00:03]} 67. Kc3 {[%clk 0:00:05]}  Kh8 {[%clk 0:00:04]} 68. Kb4 {[%clk 0:00:05]}  Kg7 {[%clk 0:00:04]} 69. Kb5 {[%clk 0:00:06]}  Kh8 {[%clk 0:00:04]} 70. Kc6 {[%clk 0:00:05]}  Bg3 {[%clk 0:00:04]} 71. Kxd5 {[%clk 0:00:05]}  Kg7 {[%clk 0:00:05]} 72. Ke6 {[%clk 0:00:05]}  Kh8 {[%clk 0:00:06]} 73. Be4 {[%clk 0:00:06]}  Kg7 {[%clk 0:00:06]} 74. Ke7 {[%clk 0:00:05]}  Kh8 {[%clk 0:00:07]} 75. Kf6 {[%clk 0:00:06]}  Bf2 {[%clk 0:00:07]} 76. Kg6 {[%clk 0:00:06]}  Bg3 {[%clk 0:00:07]} 77. Kg5 {[%clk 0:00:07]}  Kg7 {[%clk 0:00:07]} 78. Kg4 {[%clk 0:00:07]}  Kh8 {[%clk 0:00:08]} 79. Bd3 {[%clk 0:00:07]}  Kg7 {[%clk 0:00:09]} 80. Kh5 {[%clk 0:00:08]}  Kh8 {[%clk 0:00:10]} 81. Kg6 {[%clk 0:00:08]}  Bf2 {[%clk 0:00:10]} 82. Kf5 {[%clk 0:00:06]}  Bg3 {[%clk 0:00:10]} 83. Kg6 {[%clk 0:00:04]}  Bf2 {[%clk 0:00:10]} 84. Kf7 {[%clk 0:00:05]}  Bg3 {[%clk 0:00:09]} 85. Kg6 {[%clk 0:00:05]} 1/2-1/2


[Site "https://www.chess.com"]

[Event "Titled Tuesday Blitz May 23 Late 2023"]
[White "Vlassov, Nikolai"]
[Black "Drygalov, Sergey"]
[WhiteFideId "4103360"]
[BlackFideId "24171743"]
[WhiteElo "2324"]
[BlackElo "2533"]
[Result "0-1"]
[Round "03"]
[TimeControl "180+2"]
[Date "2023.05.23"]
[WhiteClock "0:00:18"]
[BlackClock "0:00:17"]

1. e4 {[%clk 0:03:00]}  c5 {[%clk 0:02:59]} 2. c3 {[%clk 0:03:00]}  d5 {[%clk 0:02:59]} 3. exd5 {[%clk 0:03:00]}  Qxd5 {[%clk 0:03:00]} 4. d4 {[%clk 0:03:00]}  Nf6 {[%clk 0:02:59]} 5. Nf3 {[%clk 0:03:00]}  Bg4 {[%clk 0:02:59]} 6. dxc5 {[%clk 0:03:00]}  Qxc5 {[%clk 0:02:52]} 7. h3 {[%clk 0:03:00]}  Bh5 {[%clk 0:02:49]} 8. Be3 {[%clk 0:03:00]}  Qc7 {[%clk 0:02:49]} 9. Na3 {[%clk 0:02:58]}  a6 {[%clk 0:02:44]} 10. Qa4+ {[%clk 0:02:57]}  Nc6 {[%clk 0:02:31]} 11. g4 {[%clk 0:02:31]}  Bg6 {[%clk 0:02:29]} 12. Bf4 {[%clk 0:02:30]}  Qa5 {[%clk 0:02:01]} 13. Qxa5 {[%clk 0:02:25]}  Nxa5 {[%clk 0:02:01]} 14. Ne5 {[%clk 0:02:06]}  Be4 {[%clk 0:01:48]} 15. f3 {[%clk 0:02:05]}  Bd5 {[%clk 0:01:47]} 16. c4 {[%clk 0:02:02]}  Be6 {[%clk 0:01:31]} 17. b4 {[%clk 0:01:59]}  Nc6 {[%clk 0:01:31]} 18. Nxc6 {[%clk 0:01:59]}  bxc6 {[%clk 0:01:31]} 19. Nc2 {[%clk 0:01:54]}  g6 {[%clk 0:01:28]} 20. O-O-O {[%clk 0:01:51]}  Bg7 {[%clk 0:01:25]} 21. Be5 {[%clk 0:01:48]}  O-O {[%clk 0:01:23]} 22. Nd4 {[%clk 0:01:45]}  Bd7 {[%clk 0:01:20]} 23. Bg2 {[%clk 0:01:43]}  a5 {[%clk 0:01:15]} 24. b5 {[%clk 0:01:31]}  cxb5 {[%clk 0:01:14]} 25. cxb5 {[%clk 0:01:30]}  Rac8+ {[%clk 0:01:10]} 26. Kb2 {[%clk 0:01:23]}  Rc5 {[%clk 0:01:10]} 27. Rhe1 {[%clk 0:01:14]}  Bxb5 {[%clk 0:01:02]} 28. Nb3 {[%clk 0:01:12]}  Rxe5 {[%clk 0:00:54]} 29. Rxe5 {[%clk 0:01:11]}  Nxg4 {[%clk 0:00:53]} 30. fxg4 {[%clk 0:01:07]}  Bxe5+ {[%clk 0:00:53]} 31. Ka3 {[%clk 0:01:06]}  Bd6+ {[%clk 0:00:52]} 32. Kb2 {[%clk 0:01:06]}  Rb8 {[%clk 0:00:51]} 33. Kc2 {[%clk 0:00:58]}  a4 {[%clk 0:00:50]} 34. Nd4 {[%clk 0:00:57]}  Rc8+ {[%clk 0:00:51]} 35. Kb2 {[%clk 0:00:53]}  a3+ {[%clk 0:00:50]} 36. Kb3 {[%clk 0:00:44]}  Bc4+ {[%clk 0:00:49]} 37. Ka4 {[%clk 0:00:44]}  Bxa2 {[%clk 0:00:48]} 38. Nb5 {[%clk 0:00:43]}  Rc4+ {[%clk 0:00:23]} 39. Ka5 {[%clk 0:00:40]}  Bb4+ {[%clk 0:00:23]} 40. Kb6 {[%clk 0:00:37]}  Bb3 {[%clk 0:00:24]} 41. Rd8+ {[%clk 0:00:35]}  Kg7 {[%clk 0:00:23]} 42. Ra8 {[%clk 0:00:35]}  Bc5+ {[%clk 0:00:22]} 43. Kb7 {[%clk 0:00:30]}  a2 {[%clk 0:00:20]} 44. Bc6 {[%clk 0:00:20]}  Rc1 {[%clk 0:00:17]} 45. Bd5 {[%clk 0:00:18]}  Bxd5+ {[%clk 0:00:17]} 0-1


[Site "https://www.chess.com"]

[Event "Titled Tuesday Blitz May 23 Late 2023"]
[White "Talibov, Shiroghlan"]
[Black "Novik, Maxim"]
[WhiteFideId "13429078"]
[BlackFideId "4102924"]
[WhiteElo "2188"]
[BlackElo "2287"]
[Result "1-0"]
[Round "03"]
[TimeControl "180+2"]
[Date "2023.05.23"]
[WhiteClock "0:01:08"]
[BlackClock "0:00:00"]

1. a3 {[%clk 0:03:00]}  e5 {[%clk 0:02:53]} 2. c4 {[%clk 0:02:59]}  Nf6 {[%clk 0:02:53]} 3. e3 {[%clk 0:02:56]}  d5 {[%clk 0:02:51]} 4. cxd5 {[%clk 0:02:56]}  Nxd5 {[%clk 0:02:51]} 5. b4 {[%clk 0:02:53]}  Bd6 {[%clk 0:02:50]} 6. Bb2 {[%clk 0:02:53]}  O-O {[%clk 0:02:50]} 7. Qb3 {[%clk 0:02:49]}  Be6 {[%clk 0:02:47]} 8. Bc4 {[%clk 0:02:49]}  c6 {[%clk 0:02:43]} 9. Nc3 {[%clk 0:02:49]}  Bc7 {[%clk 0:02:23]} 10. Nf3 {[%clk 0:02:44]}  Qd7 {[%clk 0:01:33]} 11. Ne4 {[%clk 0:02:37]}  b5 {[%clk 0:01:16]} 12. Bxd5 {[%clk 0:02:36]}  Bxd5 {[%clk 0:01:11]} 13. Qc2 {[%clk 0:02:36]}  Qe7 {[%clk 0:01:04]} 14. Nc3 {[%clk 0:02:19]}  Bxf3 {[%clk 0:01:01]} 15. gxf3 {[%clk 0:02:20]}  Nd7 {[%clk 0:01:01]} 16. Rg1 {[%clk 0:02:19]}  a5 {[%clk 0:01:00]} 17. bxa5 {[%clk 0:02:09]}  Rxa5 {[%clk 0:01:00]} 18. Ne4 {[%clk 0:02:05]}  Ra6 {[%clk 0:01:00]} 19. Ng5 {[%clk 0:02:03]}  g6 {[%clk 0:00:59]} 20. h4 {[%clk 0:02:01]}  Nf6 {[%clk 0:00:58]} 21. Rh1 {[%clk 0:01:46]}  Nh5 {[%clk 0:00:52]} 22. Rg1 {[%clk 0:01:42]}  Rd8 {[%clk 0:00:48]} 23. Ne4 {[%clk 0:01:40]}  Qxh4 {[%clk 0:00:40]} 24. Ke2 {[%clk 0:01:40]}  f5 {[%clk 0:00:34]} 25. Ng5 {[%clk 0:01:31]}  Ba5 {[%clk 0:00:32]} 26. d3 {[%clk 0:01:29]}  Qa4 {[%clk 0:00:29]} 27. Qxa4 {[%clk 0:01:21]}  bxa4 {[%clk 0:00:29]} 28. Bxe5 {[%clk 0:01:22]}  c5 {[%clk 0:00:20]} 29. Rab1 {[%clk 0:01:21]}  h6 {[%clk 0:00:16]} 30. Nh3 {[%clk 0:01:20]}  Re6 {[%clk 0:00:14]} 31. f4 {[%clk 0:01:17]}  Kf7 {[%clk 0:00:10]} 32. Rb7+ {[%clk 0:01:16]}  Kg8 {[%clk 0:00:09]} 33. Rb5 {[%clk 0:01:16]}  Bb6 {[%clk 0:00:07]} 34. Rgb1 {[%clk 0:01:14]}  Ba7 {[%clk 0:00:07]} 35. Rb7 {[%clk 0:01:14]}  Ra6 {[%clk 0:00:04]} 36. Re7 {[%clk 0:01:10]}  c4 {[%clk 0:00:00]} 37. d4 {[%clk 0:01:08]} 1-0


[Site "https://www.chess.com"]

[Event "Titled Tuesday Blitz May 23 Late 2023"]
[White "Licznerski, Lukasz"]
[Black "Danielyan, Vahe"]
[WhiteFideId "1179250"]
[BlackFideId "13304828"]
[WhiteElo "2453"]
[BlackElo "2423"]
[Result "1-0"]
[Round "03"]
[TimeControl "180+2"]
[Date "2023.05.23"]
[WhiteClock "0:00:06"]
[BlackClock "0:00:00"]

1. e4 {[%clk 0:03:00]}  c6 {[%clk 0:02:55]} 2. d4 {[%clk 0:02:59]}  d5 {[%clk 0:02:55]} 3. exd5 {[%clk 0:02:59]}  cxd5 {[%clk 0:02:55]} 4. Bd3 {[%clk 0:02:59]}  Nc6 {[%clk 0:02:55]} 5. c3 {[%clk 0:02:58]}  Nf6 {[%clk 0:02:56]} 6. Bf4 {[%clk 0:02:57]}  Bg4 {[%clk 0:02:55]} 7. Qb3 {[%clk 0:02:57]}  e5 {[%clk 0:02:52]} 8. dxe5 {[%clk 0:02:45]}  Nh5 {[%clk 0:02:52]} 9. Be3 {[%clk 0:02:39]}  Nxe5 {[%clk 0:02:48]} 10. Bb5+ {[%clk 0:02:39]}  Nc6 {[%clk 0:02:48]} 11. Nd2 {[%clk 0:02:32]}  Bd6 {[%clk 0:02:48]} 12. Be2 {[%clk 0:02:21]}  Bxe2 {[%clk 0:02:43]} 13. Nxe2 {[%clk 0:02:22]}  O-O {[%clk 0:02:42]} 14. Qxd5 {[%clk 0:02:17]}  Nf6 {[%clk 0:02:41]} 15. Qf5 {[%clk 0:01:58]}  Re8 {[%clk 0:02:20]} 16. Nc4 {[%clk 0:01:43]}  Ne5 {[%clk 0:00:40]} 17. Nxe5 {[%clk 0:01:12]}  Rxe5 {[%clk 0:00:40]} 18. Qf3 {[%clk 0:01:12]}  Qe7 {[%clk 0:00:38]} 19. O-O-O {[%clk 0:00:58]}  Rc8 {[%clk 0:00:29]} 20. Rd3 {[%clk 0:00:54]}  Ne4 {[%clk 0:00:27]} 21. Rhd1 {[%clk 0:00:52]}  Ra5 {[%clk 0:00:20]} 22. Rd4 {[%clk 0:00:38]}  f5 {[%clk 0:00:19]} 23. Kb1 {[%clk 0:00:32]}  Qe6 {[%clk 0:00:19]} 24. Nc1 {[%clk 0:00:22]}  Be7 {[%clk 0:00:08]} 25. Nb3 {[%clk 0:00:19]}  Ra6 {[%clk 0:00:04]} 26. Bc1 {[%clk 0:00:11]}  Rac6 {[%clk 0:00:04]} 27. R4d3 {[%clk 0:00:09]}  b6 {[%clk 0:00:04]} 28. Nd4 {[%clk 0:00:09]}  Qg6 {[%clk 0:00:00]} 29. Nxf5 {[%clk 0:00:06]} 1-0


[Site "https://www.chess.com"]

[Event "Titled Tuesday Blitz May 23 Late 2023"]
[White "Bernabeu Lopez, Carlos Javier"]
[Black "Bakalchuk, Johnatan"]
[WhiteFideId "2235366"]
[BlackFideId "2810301"]
[WhiteElo "2344"]
[BlackElo "2450"]
[Result "1-0"]
[Round "03"]
[TimeControl "180+2"]
[Date "2023.05.23"]
[WhiteClock "0:01:13"]
[BlackClock "0:00:00"]

1. e4 {[%clk 0:03:00]}  c5 {[%clk 0:02:58]} 2. Nf3 {[%clk 0:03:01]}  g6 {[%clk 0:02:57]} 3. d4 {[%clk 0:03:00]}  cxd4 {[%clk 0:02:58]} 4. Nxd4 {[%clk 0:03:00]}  Bg7 {[%clk 0:02:59]} 5. c4 {[%clk 0:03:01]}  Nc6 {[%clk 0:02:58]} 6. Be3 {[%clk 0:03:01]}  Nf6 {[%clk 0:02:59]} 7. Nc3 {[%clk 0:03:02]}  O-O {[%clk 0:02:59]} 8. Be2 {[%clk 0:03:02]}  b6 {[%clk 0:03:00]} 9. O-O {[%clk 0:03:02]}  Bb7 {[%clk 0:03:00]} 10. f3 {[%clk 0:03:02]}  e6 {[%clk 0:03:00]} 11. Rc1 {[%clk 0:03:03]}  d5 {[%clk 0:02:10]} 12. Nxc6 {[%clk 0:02:58]}  Bxc6 {[%clk 0:02:09]} 13. cxd5 {[%clk 0:02:58]}  exd5 {[%clk 0:02:09]} 14. e5 {[%clk 0:02:40]}  Ne8 {[%clk 0:02:09]} 15. Bd4 {[%clk 0:02:38]}  Nc7 {[%clk 0:01:37]} 16. f4 {[%clk 0:02:06]}  Ne6 {[%clk 0:01:34]} 17. Bg4 {[%clk 0:02:00]}  Re8 {[%clk 0:01:21]} 18. Bxe6 {[%clk 0:01:55]}  Rxe6 {[%clk 0:01:22]} 19. b3 {[%clk 0:01:51]}  Qh4 {[%clk 0:01:14]} 20. Qf3 {[%clk 0:01:45]}  Rd8 {[%clk 0:01:06]} 21. g3 {[%clk 0:01:39]}  Qh3 {[%clk 0:00:57]} 22. Nd1 {[%clk 0:01:34]}  h5 {[%clk 0:00:47]} 23. Nf2 {[%clk 0:01:33]}  Qf5 {[%clk 0:00:45]} 24. Qd3 {[%clk 0:01:30]}  Qxd3 {[%clk 0:00:39]} 25. Nxd3 {[%clk 0:01:30]}  Bb5 {[%clk 0:00:33]} 26. Rfd1 {[%clk 0:01:31]}  Rc6 {[%clk 0:00:21]} 27. Rxc6 {[%clk 0:01:27]}  Bxc6 {[%clk 0:00:22]} 28. Rc1 {[%clk 0:01:28]}  Bb5 {[%clk 0:00:21]} 29. Ne1 {[%clk 0:01:26]}  Bf8 {[%clk 0:00:16]} 30. Ng2 {[%clk 0:01:27]}  Ba3 {[%clk 0:00:11]} 31. Rc7 {[%clk 0:01:24]}  a6 {[%clk 0:00:03]} 32. Ne3 {[%clk 0:01:21]}  Bb4 {[%clk 0:00:01]} 33. Kf2 {[%clk 0:01:17]}  Kf8 {[%clk 0:00:01]} 34. h4 {[%clk 0:01:17]}  Ba5 {[%clk 0:00:01]} 35. a3 {[%clk 0:01:14]}  Bd2 {[%clk 0:00:01]} 36. Rc2 {[%clk 0:01:12]}  Bxe3+ {[%clk 0:00:00]} 37. Kxe3 {[%clk 0:01:13]} 1-0


[Site "https://www.chess.com"]

[Event "Titled Tuesday Blitz May 23 Late 2023"]
[White "Quispe Arteaga, Gabriel"]
[Black "Chos, Alexey"]
[WhiteFideId "32059809"]
[BlackFideId "14117762"]
[WhiteElo "2274"]
[BlackElo "2234"]
[Result "1-0"]
[Round "03"]
[TimeControl "180+2"]
[Date "2023.05.23"]
[WhiteClock "0:00:37"]
[BlackClock "0:00:00"]

1. c4 {[%clk 0:03:00]}  d5 {[%clk 0:02:57]} 2. cxd5 {[%clk 0:03:00]}  Qxd5 {[%clk 0:02:55]} 3. Nc3 {[%clk 0:03:01]}  Qd8 {[%clk 0:02:55]} 4. Nf3 {[%clk 0:03:01]}  g6 {[%clk 0:02:55]} 5. g3 {[%clk 0:03:01]}  Bg7 {[%clk 0:02:56]} 6. Bg2 {[%clk 0:03:02]}  Nf6 {[%clk 0:02:56]} 7. O-O {[%clk 0:03:03]}  O-O {[%clk 0:02:57]} 8. d3 {[%clk 0:03:03]}  Nbd7 {[%clk 0:02:56]} 9. Bf4 {[%clk 0:03:03]}  c6 {[%clk 0:02:56]} 10. Rc1 {[%clk 0:03:04]}  Re8 {[%clk 0:02:56]} 11. a3 {[%clk 0:03:04]}  e5 {[%clk 0:02:56]} 12. Bg5 {[%clk 0:03:04]}  h6 {[%clk 0:02:56]} 13. Bd2 {[%clk 0:03:05]}  Nc5 {[%clk 0:02:55]} 14. Qc2 {[%clk 0:03:05]}  e4 {[%clk 0:02:54]} 15. dxe4 {[%clk 0:02:56]}  Ncxe4 {[%clk 0:02:54]} 16. Nxe4 {[%clk 0:02:57]}  Nxe4 {[%clk 0:02:54]} 17. Rcd1 {[%clk 0:02:58]}  Qe7 {[%clk 0:02:49]} 18. Be3 {[%clk 0:02:55]}  Bf5 {[%clk 0:02:48]} 19. Qc1 {[%clk 0:02:56]}  Kh7 {[%clk 0:02:47]} 20. Bd4 {[%clk 0:02:56]}  Nf6 {[%clk 0:02:30]} 21. e3 {[%clk 0:02:51]}  Be4 {[%clk 0:02:28]} 22. b4 {[%clk 0:02:45]}  Rac8 {[%clk 0:02:25]} 23. Qb2 {[%clk 0:02:45]}  b6 {[%clk 0:02:24]} 24. Rc1 {[%clk 0:02:45]}  c5 {[%clk 0:02:22]} 25. Bc3 {[%clk 0:02:44]}  cxb4 {[%clk 0:02:15]} 26. axb4 {[%clk 0:02:39]}  Bh8 {[%clk 0:02:06]} 27. Bd4 {[%clk 0:02:35]}  Nd5 {[%clk 0:02:02]} 28. Bxh8 {[%clk 0:02:34]}  Rxh8 {[%clk 0:02:02]} 29. b5 {[%clk 0:02:10]}  Rhd8 {[%clk 0:01:39]} 30. Qe5 {[%clk 0:01:43]}  Rxc1 {[%clk 0:00:37]} 31. Rxc1 {[%clk 0:01:41]}  Rd7 {[%clk 0:00:13]} 32. Rc8 {[%clk 0:01:25]}  f6 {[%clk 0:00:07]} 33. Qb8 {[%clk 0:00:51]}  Qg7 {[%clk 0:00:07]} 34. Nd4 {[%clk 0:00:52]}  Ne7 {[%clk 0:00:03]} 35. Bxe4 {[%clk 0:00:49]}  Nxc8 {[%clk 0:00:02]} 36. Qxc8 {[%clk 0:00:50]}  Rc7 {[%clk 0:00:03]} 37. Qe8 {[%clk 0:00:38]}  Re7 {[%clk 0:00:03]} 38. Bxg6+ {[%clk 0:00:37]}  Qxg6 {[%clk 0:00:00]} 39. Qxe7+ {[%clk 0:00:37]} 1-0


[Site "https://www.chess.com"]